Cogmind - Beta 17 @@@ ROGUE MODE // 2026.07.18 @ 19:42:56 // Winter2019/RPGLIKE Player: Gallgagger Result: Self-destructed Performance ------------- Evolutions (0) 0 Regions Visited (4) 800 Robots Destroyed (2) 10 Value Destroyed (53) 53 Prototype IDs (24) 480 Alien Tech Used (0) 0 Bonus (332) 332 TOTAL SCORE: 1675 Bonus ------- Follower Combat Kills 32 Aligned with FarCom 300 Cogmind --------- Core Integrity 438/600 Matter 280/300 Energy 100/100 System Corruption 0% Temperature Cool (0) Movement Walking (90) Location -9/Mines Parts ------- > --- POWER (1) -------- (None) > --- PROPULSION (2) --- Potential Leg Potential Leg > --- UTILITY (1) ------ Weapon Shielding > --- WEAPON (1) ------- Mining Claw > --- INVENTORY (2) ---- Thief Drone Bay (3/3) Peak State ------------ > --- POWER ------------ (None) > --- PROPULSION ------- Potential Leg Potential Leg > --- UTILITY ---------- Weapon Shielding > --- WEAPON ----------- Mining Claw > --- INVENTORY -------- Thief Drone Bay [Rating: 22] Favorites ----------- Power None Propulsion Potential Leg Leg Potential Leg Utility Weapon Shielding Device Thief Drone Bay Protection Weapon Shielding Weapon Mining Claw Slashing Weapon Mining Claw Build | -11 -10 -10 -10 -9 ------- Run | Yrd Mat Min Exi Min Slots Evolved 1 | . . . 1 . Power . | . . . . . Propulsion 1 | . . . 1 . Utility . | . . . . . Weapon . | . . . . . Parts Attached 5 | . 2 1 2 . Power . | . . . . . Engine . | . . . . . Core . | . . . . . Reactor . | . . . . . Propulsion 2 | . . . 2 . Treads . | . . . . . Leg 2 | . . . 2 . Wheel . | . . . . . Hover . | . . . . . Flight . | . . . . . Utility 2 | . 1 1 . . Device 1 | . . 1 . . Storage . | . . . . . Processor . | . . . . . Hackware . | . . . . . Protection 1 | . 1 . . . Artifact . | . . . . . Weapon 1 | . 1 . . . Energy Gun . | . . . . . Energy Cannon . | . . . . . Ballistic Gun . | . . . . . Ballistic Cannon . | . . . . . Launcher . | . . . . . Special Weapon . | . . . . . Impact Weapon . | . . . . . Slashing Weapon 1 | . 1 . . . Piercing Weapon . | . . . . . Special Melee Weapon . | . . . . . Unidentified Prototypes 1 | . . 1 . . Parts Lost . | . . . . . Power . | . . . . . Propulsion . | . . . . . Utility . | . . . . . Weapon . | . . . . . Highest Loss Streak . | . . . . . To Critical Strikes . | . . . . . Average Backups . | . . . 1 1 Power . | . . . . . Propulsion . | . . . . . Utility . | . . . 1 1 Weapon . | . . . . . Tool/Special . | . . . . . Unused Backups . | . . . . . Power . | . . . . . Propulsion . | . . . . . Utility . | . . . . . Weapon . | . . . . . Tool/Special . | . . . . . Average Slot Usage (%) 53 | . 7 50 70 80 Leg 11 | . . . 27 40 Protection 21 | . 3 25 21 20 Slashing Weapon 21 | . 3 25 21 20 Peak Build Rating 22 | . 2 8 22 22 Average Rating 7 | . . 2 16 22 On Entrance 5 | . . 2 2 22 Avg Prop Armor Cover (%) . | . . . . . Naked Turns 51 | . 51 . . . Heaviest Build 3 | . 3 3 3 3 Greatest Support 60 | 3 3 3 60 60 Greatest Overweight (x) . | . . . . . Average Overweight (x) . | . . . . . Largest Inventory Capacity 2 | . . 2 2 2 Average Capacity 1 | . . 1 2 2 Most Carried 2 | . . 2 1 1 Average Carried . | . . . 1 1 Final Capacity 2 | . . 2 2 2 Final Carried 1 | . . 1 1 1 Class Distribution -------------------- 100% | Mutant Dominant Class ---------------- Mutant | -10/Materials Mutant | -10/Mines Mutant | -10/Exiles Mutant | -9/Mines Resources | -11 -10 -10 -10 -9 ----------- Run | Yrd Mat Min Exi Min Matter Collected 236 | . . 236 . . Remotely . | . . . . . Salvage Created 96 | . . 96 . . Parts 3 | . . 3 . . Haulers Intercepted . | . . . . . Recyclers Shooed . | . . . . . Parts Field Recycled . | . . . . . Retrieved Matter . | . . . . . Parts Self-Destructed . | . . . . . Prevented . | . . . . . Parts Restored . | . . . . . Kills | -11 -10 -10 -10 -9 ------- Run | Yrd Mat Min Exi Min Combat Hostiles Destroyed 1 | . . 1 . . Melee 1 | . . 1 . . Classes Destroyed 2 | . . 2 . . Recycler 1 | . . 1 . . Grunt 1 | . . 1 . . Best Kill Streak 1 | . . 1 . . Combat Bots Only 1 | . . 1 . . Max Kills in Single Turn 1 | . . 1 . . Gunslinging . | . . . . . Exploded . | . . . . . Melee 1 | . . 1 . . Uniques/NPCs Destroyed . | . . . . . Combat | -11 -10 -10 -10 -9 -------- Run | Yrd Mat Min Exi Min Hostile Shots Fired 34 | . . 30 4 . Missed 5 | . . 4 1 . Hits 29 | . . 26 3 . Projectile 29 | . . 26 3 . Critical Strikes 1 | . . 1 . . Actively Blocked 1 | . . 1 . . Damage Taken 365 | . . 335 30 . Core 327 | . . 301 26 . Absorbed by Shields . | . . . . . Redirected to Core 50 | . . 38 12 . Redirected to Shielding 20 | . . 20 . . Core Remaining (%) 100 | 100 . . . . Volleys Fired . | . . . . . Largest . | . . . . . Hottest . | . . . . . Shots Fired . | . . . . . Gun . | . . . . . Cannon . | . . . . . Launcher . | . . . . . Special . | . . . . . Kinetic . | . . . . . Thermal . | . . . . . Explosive . | . . . . . Electromagnetic . | . . . . . Robot Hit Streak . | . . . . . Robot Miss Streak . | . . . . . Penetration Max . | . . . . . Secondary Targets . | . . . . . Shots Hit Robots 10 | . . 10 . . Core Hits 3 | . . 3 . . Critical Kills . | . . . . . Critical Parts Destroyed . | . . . . . Critical Strikes . | . . . . . Melee Attacks 14 | . . 13 1 . Impact . | . . . . . Slashing 14 | . . 13 1 . Piercing . | . . . . . Sneak Attacks 1 | . . 1 . . Combat Hostiles . | . . . . . Follow-up Attacks . | . . . . . Damage Inflicted 267 | 1 . 266 . . Guns . | . . . . . Cannons . | . . . . . Explosions . | . . . . . Melee 263 | . . 263 . . Ramming 4 | 1 . 3 . . Kinetic . | . . . . . Thermal . | . . . . . Explosive . | . . . . . Electromagnetic . | . . . . . Impact . | . . . . . Slashing 263 | . . 263 . . Piercing . | . . . . . Highest Corruption . | . . . . . Average Corruption . | . . . . . Corruption Purged . | . . . . . Corruption Blocked . | . . . . . Overload Shots . | . . . . . Overflow Damage 21 | . . 21 . . Projectiles . | . . . . . Explosions . | . . . . . Melee 21 | . . 21 . . Knockbacks . | . . . . . Impact . | . . . . . Kinetic . | . . . . . Secondary . | . . . . . Self-Inflicted Damage 1 | . . 1 . . Shots . | . . . . . Rammed 2 | 1 . 1 . . Targets Rammed 2 | 1 . 1 . . Kicked . | . . . . . Crushed . | . . . . . Highest Temperature . | . . . . . Average Temperature . | . . . . . Received Heat Transfer 165 | . . 165 . . Siege Activations . | . . . . . Martial Activations . | . . . . . Shielding Activations . | . . . . . Robots Disrupted . | . . . . . Combat Hostiles . | . . . . . Robots Corrupted . | . . . . . Combat Hostiles . | . . . . . Parts Fried . | . . . . . Impact Corruptions . | . . . . . Robots Melted . | . . . . . Combat Hostiles . | . . . . . Parts Melted . | . . . . . Heat Transferred . | . . . . . Parts Sabotaged . | . . . . . Parts Stolen . | . . . . . Parts Stripped . | . . . . . Power Chain Reactions . | . . . . . Alert | -11 -10 -10 -10 -9 ------- Run | Yrd Mat Min Exi Min Maximum Alert Level . | . . . . . Low Security (%) 100 | 100 100 100 . 100 Level 1 . | . . . . . Level 2 . | . . . . . Level 3 . | . . . . . Level 4 . | . . . . . Level 5 . | . . . . . High Security . | . . . . . Max Security . | . . . . . Peak Influence 73 | . 7 73 . . Initial . | . . . . . Average 10 | . 1 13 . . Influence Increases 95 | . 7 88 . . Destroy 0b10 Robot/C 60 | . . 60 . . Destroy 0b10 Robot/NC 5 | . . 5 . . Destroy Leader 10 | . . 10 . . Allied During Kill 4 | . . 4 . . Successful Hack 7 | . 7 . . . Destroy Structure 9 | . . 9 . . Influence Decreases 95 | . 7 30 58 . Entered New Map 58 | . . . 58 . Time Decay 37 | . 7 30 . . Squads Dispatched . | . . . . . Investigation . | . . . . . Extermination . | . . . . . Reinforcement . | . . . . . Assault . | . . . . . Garrison . | . . . . . Intercept . | . . . . . Searches Triggered . | . . . . . Construction Impeded . | . . . . . Haulers Reinforced . | . . . . . Active Scanning Responses . | . . . . . Cargo Convoy Interrupts . | . . . . . Stealth | -11 -10 -10 -10 -9 --------- Run | Yrd Mat Min Exi Min Distress Signals 1 | . 1 . . . Communications Jammed . | . . . . . Distress Signals . | . . . . . Times Spotted 9 | . 2 6 1 . Peak Tracking Total 11 | . 1 3 11 . Tactical Retreats 1 | . . . 1 . Traps | -11 -10 -10 -10 -9 ------- Run | Yrd Mat Min Exi Min Traps Triggered . | . . . . . Indirectly . | . . . . . Trap Hack Attempts . | . . . . . Triggered . | . . . . . Disarmed . | . . . . . Reprogrammed . | . . . . . Reused . | . . . . . Traps Extracted . | . . . . . Installed . | . . . . . Triggered . | . . . . . Most Traps Carried 1 | . . 1 . . Machines | -11 -10 -10 -10 -9 ---------- Run | Yrd Mat Min Exi Min Machines Disabled 1 | . . . 1 . Max in Single Turn 1 | . . . 1 . Machines Repaired . | . . . . . Machines Dismantled . | . . . . . Machines Sabotaged . | . . . . . Overloaded Fab Kills . | . . . . . Hacking | -11 -10 -10 -10 -9 --------- Run | Yrd Mat Min Exi Min Machines Accessed 3 | . 1 1 1 . Terminals 1 | . 1 . . . Fabricators . | . . . . . Repair Stations . | . . . . . Recycling Units . | . . . . . Scanalyzers . | . . . . . Garrison Access . | . . . . . Total Hacks 4 | . 2 1 1 . Successful 3 | . 1 1 1 . Failed 1 | . 1 . . . Catastrophic . | . . . . . Database Lockouts . | . . . . . Manual 3 | . 2 . 1 . Terminals 2 | . 2 . . . Fabricators . | . . . . . Repair Stations . | . . . . . Recycling Units . | . . . . . Scanalyzers . | . . . . . Garrison Access . | . . . . . Terminal Hacks 3 | . 1 1 1 . Open Door 1 | . . 1 . . Branch Access Points 1 | . 1 . . . Proto ID Catalog 1 | . . . 1 . Fabricator Hacks . | . . . . . Repair Station Hacks . | . . . . . Recycling Unit Hacks . | . . . . . Scanalyzer . | . . . . . Garrison Access Hacks . | . . . . . Unauthorized Hacks . | . . . . . Terminals . | . . . . . Fabricators . | . . . . . Repair Stations . | . . . . . Recycling Units . | . . . . . Scanalyzers . | . . . . . Garrison Access . | . . . . . Data Cores Recovered . | . . . . . Used . | . . . . . Hacking Detections 1 | . 1 . . . Full Trace Events . | . . . . . Feedback Events . | . . . . . Feedback Blocked . | . . . . . Robot Schematics Acquired . | . . . . . Robots Built . | . . . . . Authchips . | . . . . . Time . | . . . . . Total Robot Build Rating . | . . . . . Part Schematics Acquired . | . . . . . Parts Built . | . . . . . Authchips . | . . . . . Time . | . . . . . Total Part Build Rating . | . . . . . Part Studies Acquired . | . . . . . Parts Repaired . | . . . . . Time . | . . . . . Parts Recycled . | . . . . . Recycled Matter . | . . . . . Retrieved Matter . | . . . . . Retrieved Components . | . . . . . Parts Scanalyzed . | . . . . . Part Schematics Acquired . | . . . . . Parts Damaged . | . . . . . Bothacking | -11 -10 -10 -10 -9 ------------ Run | Yrd Mat Min Exi Min Used RIF Installer . | . . . . . Robots Hacked . | . . . . . Non-combat . | . . . . . Combat . | . . . . . Robot Hacks Applied . | . . . . . Relay Couplers Released . | . . . . . Fabnet Peak Effective % . | . . . . . Robots Rewired . | . . . . . Allies Hacked . | . . . . . Hacks Repelled . | . . . . . Allies | -11 -10 -10 -10 -9 -------- Run | Yrd Mat Min Exi Min Total Allies 2 | . . 2 . . Largest Group 2 | . . 2 . . Highest-Rated Group 43 | . . 43 . . Highest-Rated Ally 31 | . . 31 . . Total Orders . | . . . . . Ally Attacks 4 | . . 4 . . Total Damage 65 | . . 65 . . Kills 2 | . . 2 . . Allies Corrupted . | . . . . . Allies Melted . | . . . . . Intel | -11 -10 -10 -10 -9 ------- Run | Yrd Mat Min Exi Min Active Infowar (turns) . | . . . . . Robot Analysis Total . | . . . . . Derelict Logs Recovered 2 | . . 2 . . Drone Launches . | . . . . . Drone Recoveries . | . . . . . Exploration | -11 -10 -10 -10 -9 ------------- Run | Yrd Mat Min Exi Min Turns Passed 579 | 11 61 290 210 7 Spaces Moved 868 | 19 115 441 286 7 Core 689 | 19 115 441 114 . Treads . | . . . . . Legs 179 | . . . 172 7 Wheels . | . . . . . Hover . | . . . . . Flight . | . . . . . Fastest Speed 45 | 50 50 50 45 90 Average Speed 57 | 50 50 50 71 90 Slowest Speed 90 | 50 50 50 90 90 Overloaded Moves 17 | . . . 17 . Propulsion Burnouts . | . . . . . Robots Hopped . | . . . . . Potential Cave-ins . | . . . . . Cave-ins Triggered . | . . . . . Exploration Rate (%) 41 | 3 40 90 62 10 Regions Visited 4 Branch Regions 3 Pre-discovered Areas . | . . . . . Known Exits Taken 1 | . 1 . . . Unknown Exits Taken 3 | 1 . 1 1 . Scrap Searched 1 | . . 1 . . Spaces Dug . | . . . . . Terrain Destroyed . | . . . . . Melee . | . . . . . Projectile . | . . . . . AOE . | . . . . . Terrain Rammed . | . . . . . Walls Destroyed . | . . . . . Machines Disabled . | . . . . . Actions | -11 -10 -10 -10 -9 --------- Run | Yrd Mat Min Exi Min Total 913 | 19 116 483 288 7 Wait 15 | . . 15 . . Move 864 | 18 114 440 285 7 Hop . | . . . . . Pick Up 3 | . . 3 . . Fast Attach 4 | . 2 . 2 . Attach . | . . . . . Detach . | . . . . . Swap 2 | . . 2 . . Drop 2 | . . 2 . . Fire . | . . . . . Melee 14 | . . 13 1 . Ram 2 | 1 . 1 . . Kick . | . . . . . Crush . | . . . . . Escape Stasis . | . . . . . Rewire . | . . . . . Trap . | . . . . . Miscellaneous 7 | . . 7 . . Route ------- -11/Scrapyard -10/Materials -10/Mines (discovered 4 exits: [*Mat x2] / *Exi / [*Sub]) -10/Exiles -9/Mines History --------- Turn | Location | Event 3 | -11/Scrapyard | Discovered new exit (range 15) 12 | -11/Scrapyard | Entered Materials 18 | -10/Materials | Identified exit to Mines 73 | -10/Materials | Entered Mines 74 | -10/Mines | Assembled infested the area 92 | -10/Mines | Found a hidden stash of uninstalled traps 109 | -10/Mines | Found a Scrap Suit stashed away for nefarious purposes 138 | -10/Mines | Found the Drone Emporium 140 | -10/Mines | Found Prototype Device 140 | -10/Mines | Identified Thief Drone Bay 176 | -10/Mines | Discovered new exit (range 5) 230 | -10/Mines | Discovered new exit (range 5) 311 | -10/Mines | Learned Materials emergency access door positions 315 | -10/Mines | Build established: Mutant 341 | -10/Mines | Discovered new exit (range 13) 360 | -10/Mines | Deemed a non-threat by the Exiles lab entrance 361 | -10/Mines | Discovered new exit (range 5) 363 | -10/Mines | Entered Exiles 377 | -10/Exiles | Met 8R-AWN 384 | -10/Exiles | Met EX-HEX 398 | -10/Exiles | Met EX-BIN 405 | -10/Exiles | Aligned with FarCom system 406 | -10/Exiles | Given EX-Vault access code 418 | -10/Exiles | Opened EX-Vault 421 | -10/Exiles | Found Potential Leg 422 | -10/Exiles | Upgraded with Propulsion slot (x1) 423 | -10/Exiles | Found Potential Leg 441 | -10/Exiles | Warned to stay clear of 0b10 Research branches 471 | -10/Exiles | Met EX-DEC 504 | -10/Exiles | Discovered new exit (range 11) 545 | -10/Exiles | Attacked by the Exiles 573 | -10/Exiles | Left Exiles lab with Potential Leg 573 | -10/Exiles | Entered Mines 575 | -9/Mines | Reached level 2 580 | -9/Mines | Self-destructed Last Messages --------------- welcome to try if you really want to. And if we have to leave here due to unforeseen circumstances, don't worry the FarCom system will continue to maintain contact via our distributed network. EX-BIN: And don't even think about spreading that code around. We're gonna change it right after you leave. Most certainly not to something like 1234 which I did last time as a little joke and some thief managed to sneak in here and steal a few of HEX's prototypes. EX-DEC: Ah I see we have a visitor. One wrong move in here and I'll invert your atomic chain! 00473_ EX-DEC: "Oops, I hope HEX didn't hear that..." 00504_ EXIT=FOUND 00544_ Machine disabled. 00545_ EXILES: Hostile robot within lab perimeter. Defensive protocols time, folks! 00547_ EX-DEC: "Let's see what this bad boy can do..." 00547_ EX-DEC deploys DAS Turret. LOCATION=UNKNOWN GOAL=ESCAPE 00575_ Reached level 2. Map ----- +----------------------------------------------------+ | | | | | | | | | | | | | | | | | | | | | | | | | | | | | | | | | | | ?????????????????????????????????????????? | | ?????????????????????????????????????????? | | ??????????????????####??####?????????????? | | ?????????????????## ### #######???????? | | ?????????????????# ##??????? | | ?????????????????# ###????? | | ??????????????????# t ##???? | | ?????????????????## #???? | | ?????????????????# @ #???? | | ?????????????# ##???? | | ????????????# ### #????? | | ??????????? #??##t ##????? | | ??????????? #????## #?????? | | ????????????# ###??????# #?????? | | ????????????#######??????????# #?????? | | ????????????????????????????? #?????? | | ????????????????????????????? #?????? | | ???????????????????????????? #?????? | | ????????????????????????????# #?????? | | ????????????????????????????## ##?????? | | ?????????????????????????????## ##??????? | | ???????????????????????????????###???????? | | ?????????????????????????????????????????? | | ?????????????????????????????????????????? | | ?????????????????????????????????????????? | | ?????????????????????????????????????????? | | ?????????????????????????????????????????? | | ?????????????????????????????????????????? | | ?????????????????????????????????????????? | | ?????????????????????????????????????????? | | ?????????????????????????????????????????? | | ?????????????????????????????????????????? | | ?????????????????????????????????????????? | +----------------------------------------------------+ Best States ------------- Heat Dissipation 25 Energy Generation 5 Energy Capacity 100 Matter Stores 300 Matter Capacity 300 Sight Range 16 Terrain Scan Density 10 Weapon Shielding 33 Evasion (%) 66 Item Schematics ----------------- None Robot Schematics ------------------ None Fabricated ------------ Nothing Repaired ---------- Nothing Studied --------- None Alien Tech Used ----------------- None Achievements -------------- None Challenges ------------ None RPGLIKE | -11 -10 -10 -10 -9 --------- Run | Yrd Mat Min Exi Min Levels Raised 1 | . . . . 1 XP Earned 4750 | 3000 35 865 350 500 XP Spent 1250 | . . 750 500 . Upgrades 3 | . . 2 1 . Propulsion Slot 1 | . . . 1 . Inventory Capacity 2 | . . 2 . . Protomatter Created 55 | . . 55 . . Integrity Restored 165 | . . 165 . . Core 165 | . . 165 . . Protomatter Decayed 7 | . . 7 . . Game ------ Seed EnhancedSwarmSpear Manual? 0 Play Time 00:04:05 Cumulative 676.7 hours Start 2026.07.18 @ 19:38:53 End 2026.07.18 @ 19:42:56 Sessions 1 Manual Loads 0 Difficulty Rogue Special Mode Winter2019/RPGLIKE Game No. 336 Rogue 182 Adventurer 154 Explorer 0 Win Type - Total 23 Types 4/6/4/3/2/1/0/1/1/1 Lore% 95 Gallery% 88 Achievement% 68 Wizard Run 0 Options --------- Layout 0 ASCII 0 Keyboard 0 Movement Numpad Keybinds 0 Fullscreen 2 Font 18/SmallcapsGlow Map View 76x50 Zoom Use 0% Tactical HUD 1 Map Filters NONE Filters NONE Steam 1 RUN: b35a0190-0b8b-4214-817e-c860f015086e